bitfinex-derivatives/quotes_BTCF0:USTF0_20210111
["timestamp","ask_amount","ask_price","bid_price","bid_amount"]
[1610399501660,0.0064,33481.0,33447.0,0.07539]
[1610399502662,0.0064,33481.0,33447.0,0.07123]
[1610399503864,3.8842,33481.0,33447.0,0.07123]
[1610399504064,1.5,33480.0,33447.0,0.07123]
[1610399504264,1.5,33449.0,33447.0,0.07123]
[1610399504463,6.51312608,33448.0,33447.0,0.07123]
[1610399504663,6.51312608,33448.0,33424.0,0.09152]
[1610399504864,3.8728,33436.0,33389.0,4.695]
[1610399506364,0.13632608,33403.0,33401.0,0.13632608]
[1610399506564,0.13632608,33403.0,33349.0,1.92185593]
[1610399506764,0.13632608,33403.0,33368.0,4.6809]
[1610399507367,4.1283,33419.0,33368.0,4.6809]
[1610399507570,4.1283,33419.0,33368.0,4.75055]
[1610399507968,0.07587,33440.0,33368.0,0.06965]
[1610399508169,0.07587,33440.0,33376.0,3.6896]
[1610399508370,0.07587,33440.0,33376.0,3.7828]
[1610399508571,4.8455,33442.0,33376.0,3.7828]
[1610399509172,0.13632608,33407.0,33376.0,3.7828]
[1610399509372,0.13632608,33407.0,33376.0,0.0932]
[1610399509973,4.9785,33421.0,33376.0,0.0932]
[1610399511073,0.13632608,33382.0,33381.0,0.13632608]
[1610399511275,4.9785,33421.0,33381.0,0.13632608]
[1610399513178,0.13632608,33405.0,33393.0,0.13632608]
[1610399514079,0.11233,33432.0,33393.0,0.13632608]
[1610399514278,0.11233,33432.0,33393.0,0.23709608]
[1610399514680,4.1977,33439.0,33393.0,0.23709608]
[1610399515079,0.07313,33441.0,33421.0,0.13632608]
[1610399515286,0.08376,33448.0,33421.0,0.13632608]
[1610399515480,0.2772,33449.0,33421.0,0.13632608]
[1610399516880,0.2772,33449.0,33419.0,0.09466]
[1610399516881,0.2772,33449.0,33425.0,3.6775]
[1610399518094,0.2772,33449.0,33448.0,0.13632608]
[1610399518297,0.2772,33449.0,33448.0,0.23186608]
[1610399519689,0.2772,33449.0,33448.0,0.88856608]
[1610399520688,0.2772,33449.0,33448.0,0.75224]
[1610399522090,0.2772,33449.0,33448.0,0.88856608]
[1610399522689,0.0064,33481.0,33448.0,0.88856608]
[1610399522889,0.0064,33481.0,33468.0,3.8289]
[1610399523091,0.0064,33481.0,33468.0,3.8982]
[1610399524289,0.0064,33481.0,33480.0,0.13632608]
[1610399524490,0.0064,33481.0,33480.0,0.20604608]
[1610399524891,0.0064,33481.0,33480.0,0.77344608]
[1610399527194,0.2805,33528.0,33480.0,0.77344608]
[1610399527393,0.2805,33528.0,33480.0,0.20604608]
[1610399527594,0.2805,33528.0,33494.0,4.8546]
[1610399527994,0.2805,33528.0,33494.0,4.95091]
[1610399528195,0.2805,33528.0,33527.0,0.13632608]
[1610399528796,0.2805,33528.0,33515.0,0.0846]
[1610399529196,0.10424,33528.0,33515.0,0.0846]
[1610399529494,0.10424,33528.0,33494.0,0.09631]
[1610399529695,0.10424,33528.0,33484.0,3.6033]
[1610399530495,0.10424,33528.0,33493.0,0.13632608]
[1610399531495,0.10424,33528.0,33484.0,3.6033]
[1610399531895,0.10424,33528.0,33480.0,0.06972]
[1610399532097,0.10424,33528.0,33493.0,3.3819]
[1610399532298,0.10424,33528.0,33493.0,3.48605]
[1610399532497,0.10424,33528.0,33527.0,0.13632608]
[1610399532697,0.09934,33536.0,33527.0,0.13632608]
[1610399532897,0.09934,33536.0,33527.0,3.78862608]
[1610399533098,0.09934,33536.0,33527.0,0.13450768]
[1610399534100,0.2988,33552.0,33527.0,0.13450768]
[1610399534300,0.2988,33552.0,33529.0,3.4723]
[1610399534499,0.2988,33552.0,33546.0,0.13632608]
[1610399534698,0.2988,33552.0,33529.0,3.4723]
[1610399536399,0.2988,33552.0,33551.0,0.13632608]
[1610399537000,0.06956,33561.0,33551.0,0.13632608]
[1610399537203,0.06956,33561.0,33557.0,3.4664]
[1610399537398,0.06305655,33574.0,33557.0,3.4664]
[1610399538404,0.13632608,33570.0,33568.0,0.13632608]
[1610399538601,0.06891,33573.0,33568.0,0.13632608]
[1610399539702,0.06305655,33574.0,33568.0,0.13632608]
[1610399539904,0.06305655,33574.0,33570.0,0.5726]
[1610399540506,0.06305655,33574.0,33573.0,0.13632608]
[1610399541110,0.06305655,33574.0,33571.0,3.8392]
[1610399541310,0.15001655,33574.0,33571.0,3.8392]
[1610399542510,0.15001655,33574.0,33573.0,0.13632608]
[1610399543311,0.15001655,33574.0,33573.0,0.13450985]
[1610399545016,0.15001655,33574.0,33571.0,3.8392]
[1610399545818,0.06305655,33574.0,33571.0,3.8392]
[1610399546019,0.06305655,33574.0,33560.0,0.07999]
[1610399546217,0.06305655,33574.0,33570.0,3.3514]
[1610399546618,0.06305655,33574.0,33573.0,0.13632608]
[1610399548922,0.06305655,33574.0,33560.0,0.07999]
[1610399549320,0.06305655,33574.0,33553.0,0.08758]
[1610399549521,0.06305655,33574.0,33547.0,3.821]
[1610399549724,0.06305655,33574.0,33526.0,3.5708]
[1610399550522,0.13632608,33571.0,33570.0,0.13632608]
[1610399550922,0.06305655,33574.0,33467.0,2.05287833]
[1610399551126,0.06305655,33574.0,33549.0,4.1113]
[1610399551325,0.06305655,33574.0,33549.0,4.22533]
[1610399552627,0.06305655,33574.0,33573.0,0.13632608]
[1610399553129,0.06305655,33574.0,33556.0,0.09195]
[1610399554230,0.10026,33587.0,33556.0,0.09195]
[1610399554433,0.2955,33613.0,33556.0,0.09195]
[1610399554631,0.2955,33613.0,33571.0,0.36381461]
[1610399554832,0.2955,33613.0,33608.0,0.13632608]
[1610399555033,0.2955,33613.0,33571.0,0.43329461]
[1610399555231,0.38158,33613.0,33571.0,0.43329461]
[1610399556932,0.13632608,33601.0,33600.0,0.13632608]
[1610399557735,0.13632608,33601.0,33571.0,0.43329461]
[1610399558134,0.38158,33613.0,33571.0,0.43329461]
[1610399558938,0.38158,33613.0,33612.0,0.13632608]
[1610399559735,0.38158,33613.0,33600.0,3.9675]
[1610399560134,0.2955,33613.0,33600.0,3.9675]
[1610399560935,0.2955,33613.0,33612.0,0.13632608]
[1610399561336,0.2955,33613.0,33606.0,0.0788]
[1610399562739,0.06261456,33639.0,33606.0,0.0788]
[1610399562938,0.06261456,33639.0,33638.0,0.13632608]
[1610399563140,0.06261456,33639.0,33638.0,0.24708608]
[1610399563740,0.125,33700.0,33638.0,0.24708608]
[1610399564142,0.125,33700.0,33648.0,4.478]
[1610399564941,1.1925073,33736.0,33679.0,0.13632608]
[1610399565142,1.19250509,33737.0,33679.0,0.22616608]
[1610399565542,1.19036772,33752.0,33679.0,0.08984]
[1610399566043,1.19020391,33757.0,33679.0,0.08984]
[1610399566443,0.25351967,33757.0,33679.0,0.08984]
[1610399566646,4.40267258,33758.0,33679.0,0.08984]
[1610399566843,4.40267258,33758.0,33711.0,0.13632608]
[1610399567043,4.40267258,33758.0,33711.0,0.07178]
[1610399567450,0.58918,33727.0,33711.0,1.07178]
[1610399567645,0.5546,33727.0,33711.0,1.07178]
[1610399567843,0.06217258,33758.0,33711.0,0.06996964]
[1610399568042,3.7198,33736.0,33711.0,0.06996964]
[1610399568247,3.3921,33752.0,33711.0,0.06996964]
[1610399568442,0.06217258,33758.0,33711.0,0.06996964]
[1610399568943,0.06217258,33758.0,33715.0,0.13632608]
[1610399569145,0.06217258,33758.0,33711.0,0.06996964]
[1610399570044,0.06217258,33758.0,33747.0,1.0]
[1610399570246,0.06217258,33758.0,33747.0,1.07263]
[1610399571946,0.13632608,33748.0,33747.0,1.07263]
[1610399572147,0.13632608,33748.0,33747.0,0.07263]
[1610399572756,0.06217258,33758.0,33747.0,0.07263]
[1610399573850,0.13632608,33748.0,33747.0,0.07263]
[1610399575355,0.13632608,33748.0,33714.0,4.1299]
[1610399575854,0.06217258,33758.0,33747.0,0.13632608]
[1610399576056,0.06217258,33758.0,33747.0,0.21455608]
[1610399576757,0.06217258,33758.0,33747.0,0.06988]
[1610399577854,0.13632608,33760.0,33747.0,0.06988]
[1610399578955,0.09296,33797.0,33747.0,0.06988]
[1610399579156,3.7676,33818.0,33747.0,0.06988]
[1610399579357,3.7676,33818.0,33759.0,6.0]
[1610399579556,1.0,33841.0,33759.0,6.07065]
[1610399579756,1.0,33841.0,33762.0,3.5502]
[1610399579957,1.0,33841.0,33773.0,0.13632608]
[1610399580156,1.0,33841.0,33773.0,0.10097]
[1610399581257,3.5891,33871.0,33766.0,0.07377]
[1610399581758,1.0,33872.0,33766.0,0.07377]
[1610399581960,0.13632608,33767.0,33766.0,0.07377]
[1610399582557,3.9027,33805.0,33766.0,0.07377]
[1610399582758,0.09825,33807.0,33766.0,0.07377]
[1610399584059,0.13632608,33767.0,33766.0,0.07377]
[1610399584660,0.07823,33799.0,33766.0,0.07377]
[1610399585679,0.07823,33799.0,33759.0,0.07065]
[1610399586061,0.07823,33799.0,33753.0,3.9391]
[1610399587162,0.07823,33799.0,33750.0,1.0]
[1610399587373,3.3813,33801.0,33726.0,3.6286]
[1610399587562,3.3813,33801.0,33747.0,0.07067]
[1610399587963,3.3349,33804.0,33747.0,0.07067]
[1610399588362,1.5,33837.0,33747.0,0.07067]
[1610399588563,0.13632608,33748.0,33710.0,3.7795]
[1610399588764,4.6136,33750.0,33703.0,1.0]
[1610399588962,4.6136,33750.0,33703.0,1.101]
[1610399589163,3.51207,33750.0,33703.0,1.101]
[1610399589363,3.51207,33750.0,33703.0,0.101]
[1610399589564,2.35761,33750.0,33703.0,0.101]
[1610399589963,0.60287,33750.0,33703.0,0.101]
[1610399590163,1.0,33782.0,33703.0,0.101]
[1610399590564,0.13632608,33704.0,33703.0,0.23732608]
[1610399590764,1.0,33782.0,33703.0,0.23732608]
[1610399590965,1.0,33782.0,33703.0,4.59092608]
[1610399591265,4.15,33800.0,33703.0,4.59092608]
[1610399592467,0.13632608,33761.0,33753.0,0.13632608]
[1610399592668,0.13632608,33761.0,33730.0,3.5594]
[1610399593468,4.1351,33798.0,33730.0,3.5594]
[1610399593668,1.0,33827.0,33730.0,0.06856]
[1610399593869,1.0,33827.0,33734.0,3.5177]
[1610399595269,1.0,33834.0,33734.0,3.5177]
[1610399595669,2.5,33834.0,33734.0,3.5177]
[1610399595869,1.0,33834.0,33734.0,3.5177]
[1610399596669,1.0,33834.0,33755.0,0.13632608]
[1610399596870,1.0,33834.0,33755.0,0.20629608]
[1610399597271,3.9747,33838.0,33755.0,0.20629608]
[1610399598169,3.9747,33838.0,33755.0,0.69729608]
[1610399598370,0.10989,33840.0,33755.0,0.20629608]
[1610399598571,4.5249,33866.0,33794.0,0.13632608]
[1610399598769,4.5249,33866.0,33794.0,0.23777608]
[1610399598969,1.0,33874.0,33794.0,0.23777608]
[1610399599370,4.4032,33889.0,33794.0,0.23777608]
[1610399599769,4.4032,33889.0,33794.0,0.10145]
[1610399600677,0.13632608,33816.0,33808.0,0.13632608]
[1610399602173,0.07435,33851.0,33808.0,0.13632608]
[1610399602374,0.07435,33851.0,33808.0,0.24774608]
[1610399602576,0.07435,33851.0,33834.0,0.13632608]
[1610399602773,0.07435,33851.0,33834.0,0.21262608]
[1610399603374,0.07435,33851.0,33834.0,0.0763]
[1610399604478,0.10644,33859.0,33834.0,0.0763]
[1610399604677,0.13632608,33835.0,33834.0,0.0763]
[1610399606077,0.09142,33868.0,33834.0,0.0763]
[1610399606680,0.09142,33868.0,33846.0,0.13632608]
[1610399606878,0.09142,33868.0,33846.0,0.24161608]
[1610399607080,0.09142,33868.0,33846.0,0.10529]
[1610399607479,0.09142,33868.0,33857.0,1.0]
[1610399608583,0.13632608,33858.0,33857.0,1.0]
[1610399609387,0.13632608,33858.0,33846.0,0.10529]
[1610399609787,0.10949,33875.0,33846.0,0.10529]
[1610399610686,0.10949,33875.0,33860.0,0.13632608]
[1610399611887,4.549,33924.0,33860.0,0.13632608]
[1610399612487,4.549,33924.0,33858.0,0.10918]
[1610399612689,0.13632608,33859.0,33858.0,0.10918]
[1610399613486,0.10896,33884.0,33858.0,0.10918]
[1610399614287,0.10896,33884.0,33863.0,4.7108]
[1610399614687,0.13632608,33864.0,33863.0,4.7108]
[1610399614887,0.13632608,33864.0,33858.0,0.10918]
[1610399615788,0.10896,33884.0,33858.0,0.10918]
[1610399616689,0.10896,33884.0,33872.0,0.13632608]
[1610399617691,0.10896,33884.0,33870.0,3.7314]
[1610399618291,0.10896,33884.0,33858.0,0.10918]
[1610399619993,3.9964,33935.0,33858.0,0.10918]
[1610399619994,3.66709059,33935.0,33858.0,0.10918]
[1610399620794,3.66709059,33935.0,33867.0,0.13632608]
[1610399620996,3.66709059,33935.0,33867.0,0.10116]
[1610399621294,3.66709059,33935.0,33880.0,0.02]
[1610399622793,0.13632608,33881.0,33880.0,0.02]
[1610399627401,0.11632608,33881.0,33880.0,0.02]
[1610399627902,0.10502,33883.0,33880.0,0.02]
[1610399628103,0.2848,33934.0,33880.0,0.02]
[1610399628901,0.13632608,33881.0,33880.0,0.02]
[1610399630104,0.13632608,33881.0,33880.0,1.02]
[1610399630303,0.09929,33884.0,33880.0,1.02]
[1610399630904,0.13632608,33881.0,33880.0,1.02]
[1610399632006,0.13632608,33881.0,33880.0,0.02]
[1610399634011,0.13632608,33881.0,33880.0,1.02]
[1610399636414,0.08685,33882.0,33880.0,1.02]
[1610399637015,0.13632608,33881.0,33880.0,1.02]
[1610399638020,0.08685,33882.0,33880.0,0.02]
[1610399639020,0.13632608,33881.0,33880.0,0.02]
[1610399639620,0.08685,33882.0,33880.0,0.02]
[1610399640622,0.08685,33882.0,33860.0,4.1983]
[1610399641021,0.13632608,33869.0,33867.0,0.13632608]
[1610399641421,0.08685,33882.0,33867.0,0.13632608]
[1610399641620,0.0947,33891.0,33867.0,0.13632608]
[1610399641820,0.2974,33920.0,33867.0,0.13632608]
[1610399642020,1.0,33899.0,33882.0,1.0]
[1610399643022,0.13632608,33883.0,33882.0,1.0]
[1610399643422,0.13632608,33883.0,33882.0,0.98]
[1610399643622,0.13632608,33883.0,33867.0,0.10439]
[1610399645224,0.6388,33883.0,33858.0,0.11918]
[1610399645424,0.08331,33885.0,33858.0,0.03]
[1610399645626,0.13632608,33859.0,33858.0,0.03]
[1610399645825,0.24875608,33859.0,33858.0,0.03]
[1610399647226,0.11243,33859.0,33858.0,0.03]
[1610399647827,0.24875608,33859.0,33858.0,0.03]
[1610399648227,0.11243,33859.0,33858.0,0.03]
[1610399648527,0.11243,33859.0,33858.0,0.01]
[1610399649729,0.24875608,33859.0,33858.0,0.01]
[1610399650530,0.24875608,33859.0,33834.0,0.0663]
[1610399650729,0.24875608,33859.0,33827.0,3.8665]
[1610399651129,0.11243,33859.0,33827.0,3.8665]
[1610399651331,0.07368,33869.0,33827.0,3.8665]
[1610399651533,0.07368,33869.0,33827.0,3.96217]
[1610399651731,0.13632608,33859.0,33854.0,0.13632608]
[1610399652131,0.13632608,33859.0,33827.0,0.09567]
[1610399652531,0.07384,33876.0,33827.0,0.09567]
[1610399653734,0.07384,33876.0,33832.0,4.7659]
[1610399654137,0.07384,33876.0,33856.0,0.13632608]
[1610399654336,0.2787,33905.0,33856.0,0.23940608]
[1610399654537,0.2787,33905.0,33864.0,3.6667]
[1610399654735,4.3904,33940.0,33864.0,3.73587]
[1610399655137,0.2772,33939.0,33864.0,3.73587]
[1610399655337,0.36403,33939.0,33864.0,3.73587]
[1610399655737,0.36403,33939.0,33864.0,3.71587]
[1610399656135,0.35813,33939.0,33864.0,3.71587]
[1610399656336,0.13632608,33878.0,33876.0,0.13632608]
[1610399656739,0.13632608,33878.0,33864.0,3.71587]
[1610399657739,0.13632608,33878.0,33864.0,3.69587]
[1610399658338,0.13632608,33878.0,33877.0,0.13632608]
[1610399658540,0.13632608,33878.0,33877.0,0.22169608]
[1610399659841,0.03,33929.0,33879.0,0.5272]
[1610399660242,0.03,33929.0,33893.0,0.13632608]
[1610399660445,0.03,33929.0,33893.0,0.22479608]
[1610399660845,0.03,33929.0,33893.0,0.08847]
[1610399662245,0.03,33929.0,33898.0,0.13632608]
[1610399663244,0.03,33929.0,33893.0,0.08847]
[1610399664246,0.03,33929.0,33898.0,0.13632608]
[1610399665247,0.12751,33929.0,33898.0,0.11632608]
[1610399665447,0.12751,33929.0,33893.0,0.08847]
[1610399665650,0.12751,33929.0,33887.0,3.7633]
[1610399665651,1.0,33911.0,33894.0,1.0]
[1610399666352,0.13632608,33895.0,33894.0,1.0]
[1610399667159,0.13632608,33895.0,33894.0,0.99]
[1610399667354,4.3624,33911.0,33894.0,0.99]
[1610399667554,1.0,33896.0,33894.0,0.11129]
[1610399669053,0.13632608,33895.0,33894.0,0.10129]
[1610399669653,0.13632608,33895.0,33894.0,0.08129]
[1610399671654,0.10199,33921.0,33894.0,0.08129]
[1610399671853,0.12751,33929.0,33894.0,0.06129]
[1610399672454,0.03,33929.0,33894.0,0.06129]
[1610399672655,0.03,33929.0,33904.0,3.5012]
[1610399672854,0.03,33929.0,33904.0,3.60429]
[1610399673154,0.03,33929.0,33914.0,0.13632608]
[1610399673353,0.03,33929.0,33914.0,0.22496608]
[1610399673856,0.03,33929.0,33914.0,0.20496608]
[1610399675055,0.13632608,33915.0,33914.0,0.20496608]
[1610399675255,0.03,33929.0,33914.0,0.08864]
[1610399676056,0.03,33929.0,33914.0,0.06864]
[1610399677058,0.13632608,33915.0,33914.0,0.06864]
[1610399677958,0.13632608,33915.0,33914.0,0.04864]
[1610399678359,0.13632608,33915.0,33913.0,0.13632608]
[1610399678558,0.13632608,33915.0,33904.0,0.10309]
[1610399678760,0.03,33929.0,33896.0,4.4364]
[1610399679160,0.03,33929.0,33926.0,0.13632608]
[1610399679359,0.03,33929.0,33926.0,0.22180608]
[1610399679560,0.03,33929.0,33926.0,0.08548]
[1610399680159,0.03,33929.0,33926.0,0.06548]
[1610399681061,0.13632608,33927.0,33926.0,0.06548]
[1610399682062,0.13632608,33927.0,33926.0,0.04548]
[1610399684164,0.03,33929.0,33926.0,0.04548]
[1610399684364,0.03,33929.0,33926.0,0.59018]
[1610399684565,6.4299886,33971.0,33926.0,0.59018]
[1610399684765,1.5612886,33971.0,33926.0,0.02548]
[1610399685166,1.5612886,33971.0,33939.0,0.13632608]
[1610399685367,0.0612886,33971.0,33939.0,0.23136608]
[1610399685568,1.0,33963.0,33946.0,1.0]
[1610399686368,1.0,33963.0,33946.0,0.98]
[1610399686567,1.0,33963.0,33939.0,0.09504]
[1610399686568,1.5,33963.0,33939.0,0.09504]
[1610399686968,0.1121,33964.0,33915.0,3.7092]
[1610399687370,0.1121,33964.0,33915.0,3.78744]
[1610399688569,0.1121,33964.0,33915.0,3.76744]
[1610399688771,1.0,33958.0,33941.0,1.0]
[1610399689071,0.13632608,33942.0,33941.0,1.0]
[1610399690475,0.13632608,33942.0,33941.0,0.98]
[1610399690677,0.13632608,33942.0,33931.0,1.0]
[1610399691078,0.13632608,33932.0,33931.0,1.0]
[1610399692479,0.0924,33942.0,33931.0,0.98]
[1610399692682,0.0924,33942.0,33918.0,3.5347]
[1610399693078,0.0924,33942.0,33932.0,0.13632608]
[1610399693678,0.0924,33942.0,33922.0,0.08572]
[1610399694678,0.0924,33942.0,33932.0,1.0]
[1610399696680,1.0,33950.0,33933.0,1.0]
[1610399697181,1.0,33950.0,33937.0,0.13632608]
[1610399697381,1.0,33950.0,33933.0,1.0]
[1610399698783,1.0,33952.0,33935.0,1.0]
[1610399699286,0.13632608,33936.0,33935.0,1.0]
[1610399700688,0.13632608,33936.0,33934.0,1.0]
[1610399701389,0.20637608,33936.0,33934.0,1.0]
[1610399702492,0.20637608,33936.0,33934.0,0.98]
[1610399702694,0.20637608,33936.0,33904.0,3.59]
[1610399702894,1.70637608,33936.0,33904.0,3.59]
[1610399703294,4.3748,33931.0,33879.0,3.44]
[1610399703692,1.5,33930.0,33879.0,3.44]
[1610399703894,1.5,33930.0,33883.0,0.13632608]
[1610399705993,0.13632608,33884.0,33883.0,0.13632608]
[1610399707296,0.11381,33908.0,33883.0,0.13632608]
[1610399707698,0.11381,33908.0,33879.0,4.2104]
[1610399708100,0.11381,33908.0,33905.0,0.13632608]
[1610399708500,0.11381,33908.0,33905.0,0.11632608]
[1610399708901,0.11381,33908.0,33906.0,1.0]
[1610399710903,0.11381,33908.0,33905.0,0.11632608]
[1610399711303,0.07005,33936.0,33905.0,0.11632608]
[1610399711503,3.8704,33939.0,33905.0,0.11632608]
[1610399712104,0.13632608,33926.0,33918.0,0.13632608]
[1610399712304,0.24180608,33926.0,33918.0,0.13632608]
[1610399712804,0.24180608,33926.0,33918.0,0.11632608]
[1610399713705,0.10548,33926.0,33909.0,5.0]
[1610399714105,0.13632608,33921.0,33920.0,0.13632608]
[1610399715006,0.10548,33926.0,33903.0,4.0961]
[1610399715811,0.10548,33926.0,33891.0,0.1121]
[1610399716708,0.10548,33926.0,33896.0,0.13632608]
[1610399716910,0.10548,33926.0,33891.0,0.1121]
[1610399717110,0.60128,33926.0,33891.0,0.1121]
[1610399717309,0.60128,33926.0,33884.0,4.12702]
[1610399718109,3.5573,33918.0,33884.0,0.07612]
[1610399718310,1.5,33917.0,33877.0,0.06537]
[1610399718711,0.13632608,33878.0,33863.0,4.7902]
[1610399718925,0.13632608,33878.0,33839.0,1.99554745]
[1610399718926,0.23153608,33878.0,33839.0,1.99554745]
[1610399719117,0.23153608,33878.0,33833.0,1.99804899]
[1610399719316,0.23153608,33878.0,33830.0,2.00113126]
[1610399719538,0.641,33877.0,33830.0,2.00113126]
[1610399719721,0.641,33877.0,33829.0,4.2637]
[1610399719914,0.641,33877.0,33827.0,2.00173496]
[1610399719915,1.5,33876.0,33827.0,2.00173496]
[1610399720120,1.5,33876.0,33823.0,2.00057447]
[1610399720313,1.5,33872.0,33823.0,2.00057447]
[1610399720510,1.45,33872.0,33819.0,2.00199589]
[1610399720710,0.13632608,33820.0,33819.0,2.00199589]
[1610399720910,0.13632608,33820.0,33817.0,2.00381207]
[1610399721313,4.3376,33840.0,33809.0,2.00962304]
[1610399721511,4.3376,33840.0,33809.0,0.10426]
[1610399722215,0.10636,33852.0,33809.0,0.10426]
[1610399722615,4.0451,33844.0,33809.0,0.10426]
[1610399723822,5.65247,33844.0,33809.0,0.10426]
[1610399725117,1.60737,33844.0,33779.0,2.0364078]
[1610399725317,0.13632608,33791.0,33779.0,2.0364078]
[1610399725518,0.11151,33814.0,33775.0,2.03461381]
[1610399725716,0.11151,33814.0,33775.0,2.11191381]
[1610399725917,0.11151,33814.0,33775.0,0.0773]
[1610399726317,4.2737,33809.0,33775.0,0.0773]
[1610399726918,1.0,33790.0,33773.0,1.0]
[1610399727318,4.90916,33790.0,33773.0,1.0]
[1610399727518,3.93916,33790.0,33755.0,2.04926988]
[1610399727718,0.13632608,33761.0,33759.0,0.13632608]
[1610399727918,0.13632608,33761.0,33749.0,2.04953098]
[1610399728318,0.09186,33772.0,33746.0,2.05904552]
[1610399728518,0.09186,33772.0,33732.0,2.69259798]
[1610399728519,0.09186,33772.0,33741.0,2.06104791]
[1610399728720,0.09186,33772.0,33746.0,0.10705]
[1610399729118,3.5501,33773.0,33746.0,0.10705]
[1610399729518,3.5501,33773.0,33772.0,1.0]
[1610399729719,0.13632608,33789.0,33772.0,1.13632608]
[1610399729920,0.10306,33790.0,33772.0,1.13632608]
[1610399731520,0.10306,33790.0,33789.0,1.0]
[1610399731721,0.23938608,33790.0,33789.0,1.0]
[1610399731921,0.93288608,33790.0,33789.0,1.0]
[1610399733523,0.93288608,33790.0,33755.0,0.10507]
[1610399733722,0.13632608,33756.0,33755.0,0.10507]
[1610399733924,0.13632608,33756.0,33753.0,0.13632608]
[1610399734125,4.32467392,33756.0,33728.0,2.04891354]
[1610399734523,4.32467392,33756.0,33725.0,2.04651891]
[1610399734923,4.32467392,33756.0,33721.0,2.04217946]
[1610399735324,4.32467392,33756.0,33720.0,2.04196678]
[1610399735524,4.32467392,33756.0,33716.0,4.4309]
[1610399735723,0.09681,33770.0,33715.0,2.04289915]
[1610399735924,0.09681,33770.0,33715.0,0.07249]
[1610399736324,3.8102,33750.0,33715.0,0.07249]
[1610399736526,0.09681,33770.0,33715.0,0.07249]
[1610399736726,4.4139,33738.0,33715.0,0.07249]
[1610399736924,0.09681,33770.0,33715.0,0.07249]
[1610399736925,0.09676,33757.0,33715.0,0.07249]
[1610399737125,3.8768,33729.0,33715.0,0.07249]
[1610399737324,0.09676,33757.0,33715.0,0.07249]
[1610399738729,3.9706,33768.0,33715.0,0.07249]
[1610399738930,0.13632608,33765.0,33756.0,0.13632608]
[1610399739131,4.239,33800.0,33743.0,3.8456]
[1610399739329,4.239,33800.0,33743.0,3.92347]
[1610399739532,1.0,33788.0,33771.0,1.0]
[1610399741131,0.13632608,33772.0,33771.0,1.0]
[1610399741635,0.09839,33775.0,33743.0,3.92347]
[1610399742533,0.07683,33793.0,33743.0,3.92347]
[1610399742733,1.0,33846.0,33743.0,0.07787]
[1610399742934,4.2376,33840.0,33756.0,4.7539]
[1610399743234,0.13632608,33811.0,33808.0,0.13632608]
[1610399743433,0.09192,33811.0,33795.0,3.3461]
[1610399743832,0.07017,33836.0,33795.0,3.3461]
[1610399744033,0.07017,33836.0,33795.0,0.09621]
[1610399744235,0.07017,33836.0,33810.0,6.0]
[1610399744636,0.07017,33836.0,33810.0,6.10074]
[1610399744835,1.0,33872.0,33817.0,3.7231]
[1610399745036,1.0,33872.0,33817.0,3.81591]
[1610399745235,1.0,33872.0,33868.0,0.13632608]
[1610399745436,1.0,33872.0,33854.0,4.066]
[1610399745836,1.08059,33872.0,33854.0,4.066]
[1610399746136,0.08059,33872.0,33854.0,4.066]
[1610399747638,0.08643,33879.0,33871.0,0.13632608]
[1610399747839,0.08866,33896.0,33871.0,0.13632608]
[1610399748040,0.08866,33896.0,33871.0,0.20840608]
[1610399748240,0.08866,33896.0,33878.0,6.0]
[1610399748841,0.08866,33896.0,33878.0,6.08157]
[1610399749741,1.0,33919.0,33878.0,6.08157]
[1610399749948,1.0,33919.0,33895.0,0.13632608]
[1610399750147,0.2892,33936.0,33895.0,0.13632608]
[1610399751347,0.2892,33936.0,33888.0,0.07536]
[1610399751748,0.36816,33936.0,33888.0,0.07536]
[1610399751948,0.13632608,33889.0,33888.0,0.07536]
[1610399752348,0.0905,33903.0,33878.0,0.08157]
[1610399753449,4.0046,33920.0,33878.0,0.08157]
[1610399753848,4.0046,33920.0,33883.0,0.13632608]
[1610399754049,4.0046,33920.0,33878.0,0.07332]
[1610399754250,1.0,33891.0,33878.0,0.07332]
[1610399755251,1.0,33891.0,33874.0,1.0]
[1610399755851,0.13632608,33875.0,33874.0,1.0]
[1610399756251,1.13632608,33875.0,33858.0,4.6856]
[1610399756852,1.13632608,33875.0,33854.0,1.0]
[1610399757852,0.13632608,33865.0,33858.0,0.13632608]
[1610399758252,1.0,33863.0,33846.0,1.0755]
[1610399758953,1.0,33863.0,33846.0,1.5495]
[1610399759154,1.0,33863.0,33846.0,1.0755]
[1610399759355,1.0,33863.0,33853.0,4.8548]
[1610399759557,5.0,33880.0,33853.0,4.95063]
[1610399759955,4.0854,33925.0,33879.0,0.13632608]
[1610399760157,0.2806,33934.0,33879.0,0.13632608]
[1610399760356,4.6501,33938.0,33879.0,0.13632608]
[1610399760858,1.5,33937.0,33879.0,0.13632608]
[1610399761057,4.6501,33938.0,33879.0,0.13632608]
[1610399761859,1.0,33910.0,33893.0,1.0]
[1610399762060,1.10921,33910.0,33893.0,1.0]
[1610399763061,2.60921,33910.0,33893.0,1.0]
[1610399763465,1.10921,33910.0,33893.0,1.0]
[1610399764062,0.10921,33910.0,33828.0,1.0]
[1610399764264,0.13632608,33898.0,33891.0,0.13632608]
[1610399764667,0.13632608,33898.0,33828.0,1.0]
[1610399764668,0.10921,33910.0,33828.0,1.0]
[1610399764864,0.10921,33910.0,33865.0,4.5674]
[1610399765064,1.5,33961.0,33865.0,0.10803]
[1610399765264,1.5,33951.0,33867.0,3.7449]
[1610399765466,1.60738,33951.0,33865.0,0.10803]
[1610399765667,1.60738,33951.0,33876.0,4.2559]
[1610399765865,1.0,33930.0,33913.0,1.0]
[1610399766068,1.09111,33930.0,33913.0,1.0]